bitfinex-derivatives/quotes_SOLF0:USTF0_20250716
["timestamp","ask_amount","ask_price","bid_price","bid_amount"]
[1752651450951,2.71089008,164.38,164.37,6.0836]
[1752651451155,2.71089008,164.38,164.34,2.71089008]
[1752651451544,2.71089008,164.38,164.36,6.0839]
[1752651454560,2.71089008,164.38,164.35,6.0842]
[1752651454855,2.71089008,164.37,164.35,6.0842]
[1752651455352,2.71089008,164.37,164.34,6.0846]
[1752651455754,2.71089008,164.37,164.33,2.71089008]
[1752651455954,2.71089008,164.36,164.27,12.1745]
[1752651456259,2.71089008,164.35,164.31,2.71089008]
[1752651456856,6.0839,164.37,164.31,2.71089008]
[1752651457055,2.71089008,164.36,164.33,6.0849]
[1752651459559,2.71089008,164.36,164.32,6.0854]
[1752651459760,2.71089008,164.36,164.32,8.79629008]
[1752651459964,2.71089008,164.36,164.32,6.0854]
[1752651460165,2.71089008,164.36,164.32,8.79629008]
[1752651460466,2.71089008,164.35,164.32,6.0854]
[1752651461767,6.0838,164.37,164.32,6.0854]
[1752651462066,22.37625315,164.45,164.33,6.0851]
[1752651462261,2.71089008,164.36,164.33,6.0851]
[1752651463966,2.71089008,164.36,164.34,6.0848]
[1752651464665,6.0835,164.38,164.34,6.0848]
[1752651464868,2.71089008,164.37,164.34,6.0848]
[1752651465068,8.79439008,164.38,164.34,8.79569008]
[1752651465666,2.71089008,164.38,164.34,2.71089008]
[1752651465869,2.71089008,164.39,164.34,2.71089008]
[1752651466171,2.71089008,164.39,164.35,6.0842]
[1752651466866,8.79389008,164.39,164.35,6.0842]
[1752651467272,8.79389008,164.39,164.36,6.084]
[1752651467568,6.083,164.39,164.36,6.084]
[1752651467769,2.71089008,164.42,164.38,6.0833]
[1752651468364,8.79279008,164.42,164.39,6.0828]
[1752651468570,2.71089008,164.43,164.39,6.0828]
[1752651468768,2.71089008,164.43,164.39,8.79369008]
[1752651468969,8.79249008,164.43,164.39,8.79369008]
[1752651469770,8.79209008,164.44,164.4,6.0825]
[1752651469967,2.71089008,164.45,164.41,2.71089008]
[1752651471267,8.79169008,164.45,164.41,8.79279008]
[1752651471668,6.0808,164.45,164.41,8.79279008]
[1752651471967,8.79169008,164.45,164.41,8.79279008]
[1752651472972,6.0808,164.45,164.41,6.0819]
[1752651473767,6.0808,164.45,164.39,4.23327811]
[1752651473768,6.0808,164.45,164.42,6.0818]
[1752651474170,6.0806,164.46,164.42,6.0818]
[1752651477175,6.0807,164.45,164.39,4.23327811]
[1752651478073,6.0807,164.45,164.41,6.082]
[1752651479473,4.23327811,164.45,164.38,4.23327811]
[1752651480277,525.74,164.47,164.38,4.23327811]
[1752651480471,4.23327811,164.45,164.38,4.23327811]
[1752651480867,10.31417811,164.45,164.38,4.23327811]
[1752651481981,10.31417811,164.45,164.4,6.0822]
[1752651483080,10.31417811,164.45,164.37,4.23327811]
[1752651483488,10.31417811,164.45,164.41,6.0821]
[1752651483979,4.23327811,164.45,164.37,4.23327811]
[1752651484177,529.97327811,164.47,164.39,4.23327811]
[1752651484879,536.05347811,164.47,164.42,6.0816]
[1752651485179,536.05347811,164.47,164.39,4.23327811]
[1752651485381,529.97327811,164.47,164.39,4.23327811]
[1752651485680,4.23327811,164.47,164.43,6.0811]
[1752651485880,6.0799,164.48,164.41,4.23327811]
[1752651486198,4.23327811,164.5,164.41,4.23327811]
[1752651486383,6.0794,164.49,164.44,6.0808]
[1752651487380,6.0797,164.48,164.44,6.0808]
[1752651487681,4.23327811,164.48,164.43,6.0813]
[1752651487883,6.08,164.47,164.43,6.0813]
[1752651488182,6.08,164.47,164.44,6.0811]
[1752651488687,10.21475315,164.54,164.43,4.23327811]
[1752651488982,4.23327811,164.51,164.43,4.23327811]
[1752651489776,6.079,164.5,164.46,6.0802]
[1752651491075,10.31227811,164.5,164.46,6.0802]
[1752651491386,6.0795,164.49,164.42,4.23327811]
[1752651493398,6.0795,164.49,164.38,12.1661]
[1752651493583,6.0795,164.49,164.42,4.23327811]
[1752651493988,6.0797,164.48,164.44,6.0808]
[1752651494386,4.23327811,164.5,164.44,6.0808]
[1752651494688,4.23327811,164.46,164.39,4.23327811]
[1752651495089,6.0808,164.45,164.41,6.082]
[1752651496390,6.0808,164.45,164.42,6.0818]
[1752651496888,6.0808,164.45,164.39,4.23327811]
[1752651497088,6.0808,164.45,164.41,6.0819]
[1752651498493,6.0808,164.45,164.42,6.0818]
[1752651498689,6.0805,164.46,164.42,6.0818]
[1752651500592,10.31337811,164.47,164.43,6.0814]
[1752651500791,4.23327811,164.47,164.43,6.0814]
[1752651502098,6.0804,164.46,164.43,6.0814]
[1752651502895,6.0804,164.46,164.42,6.0817]
[1752651503096,6.0808,164.45,164.42,6.0817]
[1752651503397,4.23327811,164.47,164.42,6.0817]
[1752651503590,4.23327811,164.47,164.43,6.0814]
[1752651504100,4.23327811,164.47,164.42,6.0816]
[1752651504597,6.0807,164.45,164.42,6.0816]
[1752651506200,6.0805,164.46,164.42,6.0816]
[1752651506401,10.31377811,164.46,164.42,6.0816]
[1752651508104,6.08,164.47,164.39,4.23327811]
[1752651508607,6.08,164.47,164.43,6.0812]
[1752651508898,6.0797,164.48,164.41,4.23327811]
[1752651509100,10.31297811,164.48,164.44,6.0808]
[1752651509599,10.31297811,164.48,164.45,6.0806]
[1752651510108,4.23327811,164.48,164.45,6.0806]
[1752651511206,6.0797,164.48,164.45,6.0806]
[1752651511504,4.23327811,164.49,164.45,6.0806]
[1752651511702,4.23327811,164.49,164.36,17.2599488]
[1752651511902,4.23327811,164.49,164.4,4.23327811]
[1752651512306,6.0798,164.48,164.4,4.23327811]
[1752651512605,6.0798,164.48,164.36,17.2599488]
[1752651512804,6.0798,164.48,164.44,6.0808]
[1752651513306,6.0798,164.48,164.4,4.23327811]
[1752651513701,6.0793,164.49,164.45,6.0805]
[1752651513901,6.0793,164.49,164.4,4.23327811]
[1752651513902,10.31257811,164.49,164.4,4.23327811]
[1752651514105,10.31257811,164.49,164.41,4.76783873]
[1752651514306,10.31257811,164.49,164.45,6.0805]
[1752651516407,6.0798,164.48,164.44,6.0809]
[1752651516707,4.23327811,164.49,164.4,4.23327811]
[1752651516899,10.31267811,164.49,164.45,6.0804]
[1752651517606,10.31267811,164.49,164.43,6.0814]
[1752651517807,10.31267811,164.49,164.4,4.23327811]
[1752651518004,10.31267811,164.49,164.41,4.76750452]
[1752651518303,10.31267811,164.49,164.42,6.0816]
[1752651519112,6.0797,164.48,164.42,6.0816]
[1752651519910,4.23327811,164.45,164.35,5.0925488]
[1752651520113,4.23327811,164.45,164.37,4.23327811]
[1752651520311,4.23327811,164.45,164.38,4.76981408]
[1752651520512,6.0814,164.44,164.38,6.0831]
[1752651521110,6.0815,164.43,164.38,6.0831]
[1752651522112,6.0815,164.43,164.39,6.0828]
[1752651523719,6.0819,164.42,164.38,6.083]
[1752651524917,6.0816,164.43,164.39,6.0829]
[1752651528425,4.23327811,164.47,164.42,6.0817]
[1752651528816,6.0806,164.46,164.42,6.0817]
[1752651533320,6.0806,164.46,164.38,4.23327811]
[1752651533528,6.0806,164.46,164.39,4.76967975]
[1752651533728,6.0806,164.46,164.38,4.23327811]
[1752651533924,6.0806,164.46,164.42,6.0816]
[1752651536830,6.0808,164.45,164.42,6.0816]
[1752651537034,8.79019598,164.45,164.42,6.0816]
[1752651537234,2.70939598,164.44,164.42,6.0816]
[1752651537733,6.0808,164.45,164.42,6.0816]
[1752651537925,2.70939598,164.44,164.42,6.0816]
[1752651538634,2.70939598,164.44,164.4,2.70939598]
[1752651539135,2.70939598,164.44,164.42,6.0816]
[1752651539936,2.70939598,164.43,164.35,5.0925488]
[1752651540132,2.70939598,164.42,164.38,2.70939598]
[1752651540733,2.70939598,164.42,164.35,5.0925488]
[1752651540939,4.23539399,164.43,164.36,4.77340494]
[1752651541134,4.23539399,164.43,164.37,4.77340494]
[1752651541333,4.23539399,164.43,164.35,4.23539399]
[1752651541534,10.31699399,164.43,164.4,6.0825]
[1752651545438,6.0819,164.42,164.4,6.0825]
[1752651545840,4.23539399,164.43,164.41,6.0821]
[1752651546339,10.31699399,164.43,164.41,6.0821]
[1752651547241,6.0816,164.43,164.41,6.0821]
[1752651549744,6.0816,164.43,164.39,6.0827]
[1752651550243,10.31679399,164.44,164.39,6.0827]
[1752651550644,6.0816,164.43,164.39,6.0827]
[1752651551145,6.0816,164.43,164.37,10.31869399]
[1752651551943,6.0816,164.43,164.38,6.0832]
[1752651553044,6.082,164.42,164.38,6.0832]
[1752651553239,4.23539399,164.44,164.37,6.0836]
[1752651553437,4.23539399,164.44,164.37,10.31899399]
[1752651553637,6.082,164.42,164.37,10.31899399]
[1752651553843,4.23539399,164.46,164.37,4.23539399]
[1752651554048,4.23539399,164.46,164.38,4.77006504]
[1752651554248,6.0818,164.43,164.37,4.23539399]
[1752651554450,6.0818,164.43,164.39,6.0829]
[1752651554849,6.0818,164.43,164.38,6.0829]
[1752651555050,4.23539399,164.46,164.38,6.0829]
[1752651555854,6.0818,164.42,164.38,6.0829]
[1752651557055,6.0822,164.41,164.37,10.31889399]
[1752651557351,6.0822,164.41,164.37,4.23539399]
[1752651558155,6.0822,164.41,164.38,6.0832]
[1752651560963,6.082,164.42,164.38,6.0832]
[1752651561164,6.082,164.42,164.39,6.0829]
[1752651561857,4.23539399,164.47,164.39,4.23539399]
[1752651562362,6.081,164.45,164.41,6.0821]
[1752651562958,8.79039926,164.45,164.41,8.79149926]
[1752651564062,6.081,164.45,164.42,6.0817]
[1752651566667,8.79039926,164.45,164.42,6.0817]
[1752651567366,8.79039926,164.45,164.41,8.79139926]
[1752651567868,6.0811,164.44,164.41,8.79139926]
[1752651568370,8.79029926,164.45,164.41,8.79139926]
[1752651570475,8.79029926,164.45,164.42,6.0818]
[1752651571376,6.0809,164.45,164.42,6.0818]
[1752651571565,8.78989926,164.46,164.42,8.79119926]
[1752651571771,12.92415241,164.48,164.36,5.0925488]
[1752651571974,12.92415241,164.48,164.43,2.70939926]
[1752651572174,10.21475315,164.5,164.43,8.79069926]
[1752651572371,2.70939926,164.47,164.43,8.79069926]
[1752651572570,10.21475315,164.51,164.43,8.79069926]
[1752651572771,2.70939926,164.48,164.44,6.0811]
[1752651573464,10.21475315,164.52,164.45,6.0807]
[1752651573667,2.70939926,164.49,164.45,6.0807]
[1752651573870,6.0797,164.48,164.45,6.0807]
[1752651574191,2.70939926,164.49,164.46,6.0803]
[1752651575075,8.78889926,164.49,164.46,6.0803]
[1752651575374,2.70939926,164.49,164.45,6.0807]
[1752651575574,2.70939926,164.48,164.45,6.0807]
[1752651575872,8.78929926,164.48,164.45,6.0807]
[1752651576066,177.9,164.54,164.47,2.70939926]
[1752651576067,10.21475315,164.54,164.47,2.70939926]
[1752651576271,6.0789,164.5,164.48,2.70939926]
[1752651576475,2.70939926,164.52,164.48,8.78879926]
[1752651576867,8.78779926,164.52,164.48,2.70939926]
[1752651577074,8.78779926,164.52,164.49,6.0792]
[1752651577075,6.0784,164.52,164.49,6.0792]
[1752651577676,6.0786,164.51,164.48,8.78879926]
[1752651578479,6.0786,164.51,164.49,6.0792]
[1752651578670,6.0782,164.52,164.49,6.0792]
[1752651579072,2.70939926,164.53,164.49,6.0792]
[1752651579374,6.0782,164.52,164.49,6.0792]
[1752651579570,525.64,164.55,164.51,6.0785]
[1752651579770,2.70939926,164.55,164.51,6.0785]
[1752651579973,2.70939926,164.54,164.42,12.1631]
[1752651580177,2.70939926,164.54,164.5,8.78809926]
[1752651580775,15.21475315,164.57,164.51,6.0782]
[1752651580979,5.0,164.57,164.52,2.70939926]
[1752651581179,2.70939926,164.56,164.52,2.70939926]
[1752651581371,2.70939926,164.56,164.51,6.0783]
[1752651581571,2.70939926,164.56,164.52,2.70939926]
[1752651581770,2.70939926,164.56,164.52,8.78739926]
[1752651582178,2.70939926,164.56,164.52,2.70939926]
[1752651582381,6.0776,164.54,164.52,2.70939926]
[1752651582879,2.70939926,164.55,164.51,8.78769926]
[1752651583176,2.70939926,164.54,164.5,8.78809926]
[1752651583680,6.078,164.53,164.5,8.78809926]
[1752651584178,6.078,164.53,164.5,6.0787]
[1752651584368,6.078,164.53,164.5,8.78809926]
[1752651587577,6.078,164.53,164.5,6.0787]
[1752651587779,6.078,164.53,164.51,2.70939926]
[1752651588878,6.078,164.53,164.51,8.78789926]
[1752651589681,6.078,164.53,164.51,2.70939926]
[1752651589979,6.0776,164.54,164.51,2.70939926]
[1752651590181,2.70939926,164.55,164.51,2.70939926]
[1752651590483,6.0778,164.53,164.51,2.70939926]
[1752651591186,2.70939926,164.54,164.5,2.70939926]
[1752651591776,6.0781,164.53,164.49,8.78849926]
[1752651592282,6.0781,164.53,164.5,6.0787]
[1752651592576,6.0781,164.53,164.5,8.78809926]
[1752651593182,6.0781,164.53,164.51,6.0785]
[1752651593792,8.78749926,164.53,164.51,6.0785]
[1752651593982,6.0781,164.53,164.51,6.0785]
[1752651600186,8.78689926,164.54,164.51,6.0785]
[1752651600582,6.0775,164.54,164.51,6.0785]
[1752651600782,6.0775,164.54,164.5,2.70939926]
[1752651600783,8.78689926,164.54,164.52,6.0781]
[1752651601188,5.0,164.57,164.51,2.70939926]
[1752651601389,5.0,164.57,164.44,12.1621]
[1752651601390,7.70939926,164.57,164.53,2.70939926]
[1752651601789,13.78589926,164.57,164.53,2.70939926]
[1752651602097,5.0,164.57,164.53,2.70939926]
[1752651602486,5.0,164.57,164.54,6.0772]
[1752651603191,11.0765,164.57,164.53,8.78699926]
[1752651604794,6.0767,164.56,164.53,8.78699926]
[1752651604994,5.0,164.57,164.53,8.78699926]
[1752651605294,5.0,164.57,164.54,6.0773]
[1752651606189,11.0763,164.57,164.53,8.78699926]
[1752651606395,5.0,164.57,164.53,2.70939926]
[1752651606794,5.0,164.57,164.54,6.0771]
[1752651608193,11.0763,164.57,164.54,6.0771]
[1752651608498,13.78569926,164.57,164.53,8.78689926]
[1752651609894,6.0767,164.56,164.53,6.0775]
[1752651610095,6.0767,164.56,164.53,8.78689926]
[1752651610404,7.70939926,164.57,164.54,6.0774]
[1752651611004,5.0,164.57,164.53,2.70939926]
[1752651612097,5.0,164.57,164.53,8.78689926]
[1752651612098,6.0767,164.56,164.53,8.78689926]
[1752651612296,6.0767,164.56,164.54,2.70939926]
[1752651613006,11.0764,164.57,164.54,8.78679926]
[1752651615202,11.0764,164.57,164.54,6.0774]
[1752651615403,11.0764,164.57,164.54,8.78679926]
[1752651617796,5.0,164.57,164.55,6.077]
[1752651618608,5.0,164.57,164.56,8.78599926]
[1752651618995,5.0,164.57,164.56,6.0766]
[1752651619201,5.0,164.57,164.56,8.78599926]
[1752651624206,5.0,164.57,164.56,6.0766]
[1752651624507,5.0,164.57,164.56,8.78599926]
[1752651624707,6.0754,164.6,164.57,6.0759]
[1752651624903,6.0754,164.6,164.57,8.78529926]
[1752651625099,187.95475315,164.66,164.57,8.78529926]
[1752651625302,2.70939926,164.61,164.49,17.21413509]
[1752651625507,187.95475315,164.66,164.47,6.76438891]
[1752651625508,2.70939926,164.58,164.54,2.70939926]
[1752651625705,8.78559926,164.58,164.54,2.70939926]
[1752651626005,2.70939926,164.58,164.54,6.0771]
[1752651626206,6.0764,164.57,164.54,8.78649926]
[1752651626607,6.0764,164.57,164.55,6.077]
[1752651626806,6.076,164.58,164.55,6.077]
[1752651627009,22.36165315,164.65,164.55,6.077]
[1752651627209,2.70939926,164.59,164.55,8.78639926]
[1752651627409,8.78509926,164.59,164.56,6.0765]
[1752651628004,6.0757,164.59,164.56,6.0765]
[1752651628204,8.78469926,164.6,164.57,6.0762]
[1752651628605,2.70939926,164.6,164.56,2.70939926]
[1752651629007,6.0755,164.59,164.56,8.78579926]
[1752651629413,8.78479926,164.6,164.57,6.0762]
[1752651630517,6.0756,164.59,164.56,6.0765]
[1752651630708,6.0756,164.59,164.56,8.78589926]
[1752651634720,6.0756,164.59,164.56,6.0765]
[1752651634914,6.0756,164.59,164.56,8.78589926]
[1752651635519,6.0756,164.59,164.56,6.0765]
[1752651635720,8.78499926,164.59,164.56,6.0765]
[1752651636122,6.0756,164.59,164.56,6.0765]
[1752651636320,8.78499926,164.59,164.56,6.0765]
[1752651638021,6.0759,164.58,164.56,6.0765]
[1752651639526,6.0763,164.57,164.48,5.05593509]
[1752651639722,2.70939926,164.59,164.49,4.74087267]
[1752651639923,22.36225315,164.64,164.52,2.70939926]
[1752651640224,2.70939926,164.57,164.53,6.0775]
[1752651640726,2.70939926,164.57,164.54,6.0774]
[1752651640926,10.21475315,164.63,164.53,2.70939926]
[1752651641228,2.70939926,164.58,164.53,2.70939926]
[1752651641518,6.0763,164.57,164.5,6.0787]
[1752651641724,6.0763,164.57,164.53,2.70939926]
[1752651642126,6.0765,164.57,164.53,8.78679926]
[1752651642430,6.0765,164.57,164.53,2.70939926]
[1752651642824,6.0765,164.57,164.54,6.0773]
[1752651643829,8.78589926,164.57,164.54,6.0773]
[1752651644126,10.21475315,164.63,164.53,8.78709926]
[1752651644329,2.70939926,164.58,164.53,2.70939926]
[1752651644930,8.78559926,164.58,164.55,6.077]
[1752651645232,2.70939926,164.58,164.53,2.70939926]
[1752651646029,6.0763,164.57,164.54,6.0771]
[1752651647737,6.0767,164.56,164.53,8.78699926]
[1752651649944,6.0767,164.56,164.53,6.0776]
[1752651650143,6.0767,164.56,164.53,8.78699926]
[1752651651143,6.0765,164.57,164.54,6.0774]
[1752651651740,6.0765,164.57,164.55,6.077]
[1752651652245,2.70939926,164.58,164.56,6.0766]
[1752651652444,2.70939926,164.58,164.54,2.70939926]
[1752651653444,10.21475315,164.63,164.56,2.70939926]
[1752651653644,2.70939926,164.61,164.56,2.70939926]
[1752651653938,6.0754,164.6,164.57,6.0761]
[1752651659547,6.0754,164.6,164.57,8.78549926]
[1752651659840,6.0754,164.6,164.58,6.0759]
[1752651660751,6.0754,164.6,164.57,8.78549926]
[1752651663151,6.0754,164.6,164.57,6.0761]
[1752651663359,6.0754,164.6,164.57,8.82615595]
[1752651663650,6.11385848,164.6,164.57,8.82615595]
[1752651663850,6.11385848,164.6,164.57,6.11675669]
[1752651664056,6.11385848,164.6,164.57,8.82615595]
[1752651666147,0.03845848,164.6,164.57,8.82615595]
[1752651667449,0.03845848,164.6,164.58,6.0759]
[1752651667651,0.03845848,164.6,164.58,8.78529926]
[1752651667851,0.03845848,164.6,164.58,2.70939926]
[1752651668050,0.03845848,164.6,164.59,6.0755]
[1752651668248,0.03845848,164.6,164.59,8.78489926]
[1752651668456,6.0735,164.65,164.61,6.0746]
[1752651668655,6.0735,164.65,164.61,8.78399926]
[1752651669050,6.0735,164.65,164.61,6.0746]
[1752651669355,6.0735,164.65,164.61,8.78399926]
[1752651669748,6.0737,164.64,164.61,8.82405998]
[1752651670149,6.0735,164.65,164.61,8.82405998]
[1752651670956,2.70939926,164.65,164.61,2.74945998]
[1752651671151,10.21475315,164.68,164.63,2.70939926]
[1752651671357,12.92415241,164.68,164.64,2.70939926]
[1752651671661,8.78179926,164.68,164.64,8.78309926]
[1752651671853,2.70939926,164.68,164.64,6.0737]
[1752651672158,2.70939926,164.68,164.64,0.04289138]
[1752651672358,6.0726,164.67,164.64,0.04289138]
[1752651672559,8.78199926,164.67,164.64,0.04289138]
[1752651673561,6.0726,164.67,164.64,0.04289138]
[1752651673860,8.78199926,164.67,164.64,0.04289138]
[1752651674859,6.0731,164.66,164.64,0.04289138]
[1752651675751,535.37475315,164.7,164.64,2.75229064]
[1752651675957,2.70939926,164.68,164.64,2.75229064]
[1752651676159,2.70939926,164.67,164.64,0.04289138]
[1752651676760,2.70939926,164.66,164.64,0.04289138]
[1752651676962,8.78259926,164.66,164.64,0.04289138]
[1752651677261,2.70939926,164.65,164.64,0.04289138]
[1752651679057,2.70939926,164.65,164.61,6.0746]
[1752651679259,2.70939926,164.64,164.6,2.70939926]
[1752651679963,8.78289926,164.65,164.61,6.0746]
[1752651680464,2.70939926,164.64,164.61,6.0746]
[1752651681267,2.70939926,164.62,164.52,5.08781577]
[1752651681462,2.70939926,164.62,164.58,2.70939926]
[1752651681867,8.78409926,164.62,164.58,8.78499926]
[1752651682167,2.70939926,164.6,164.57,2.70939926]
[1752651682359,2.70939926,164.61,164.57,2.70939926]
[1752651682557,2.70939926,164.62,164.58,2.70939926]
[1752651682761,2.70939926,164.62,164.49,17.24561577]
[1752651683064,2.70939926,164.62,164.58,8.78519926]
[1752651683453,6.0755,164.59,164.54,6.0771]
[1752651683684,2.70939926,164.56,164.51,2.70939926]
[1752651683857,2.70939926,164.56,164.47,6.76438891]
[1752651683858,2.70939926,164.56,164.52,2.70939926]
[1752651684056,2.70939926,164.57,164.47,5.08781577]
[1752651684361,2.70939926,164.56,164.48,4.73767965]
[1752651684562,2.70939926,164.56,164.52,8.78729926]
[1752651685061,10.21475315,164.63,164.53,6.0776]
[1752651685256,14.44271759,164.64,164.5,4.22796444]
[1752651685461,4.22796444,164.61,164.52,4.22796444]
[1752651685665,191.41475315,164.64,164.54,6.0774]
[1752651685966,4.22796444,164.61,164.54,6.0774]
[1752651686364,6.0758,164.59,164.54,6.0774]
[1752651686965,4.22796444,164.58,164.55,0.04385969]
[1752651687369,4.22796444,164.58,164.49,4.22796444]
[1752651688070,4.22796444,164.58,164.52,6.0778]
[1752651688466,6.0764,164.57,164.52,6.0778]
[1752651689071,6.0764,164.57,164.53,6.0777]
[1752651690967,6.0764,164.57,164.53,6.12119764]
[1752651691268,6.0766,164.56,164.53,0.04349764]
[1752651691468,4.22796444,164.58,164.53,0.04349764]
[1752651691770,6.0764,164.57,164.53,0.04349764]
[1752651692267,4.22796444,164.58,164.53,0.04349764]
[1752651692462,10.30416444,164.58,164.53,6.12099764]
[1752651693068,0.0387261,164.57,164.53,6.12099764]
[1752651693268,6.1150261,164.57,164.53,6.12099764]
[1752651693472,0.0387261,164.57,164.54,6.0773]
[1752651693769,2.61e-05,164.57,164.55,4.22796444]
[1752651693971,10.20415114,164.69,164.56,533.58327644]
[1752651694172,4.22163822,164.72,164.64,4.22163822]
[1752651694375,6.0711,164.71,164.65,6.0731]
[1752651694571,4.22163822,164.72,164.65,6.0731]
[1752651694877,6.0715,164.7,164.64,4.22163822]
[1752651695073,4.22163822,164.72,164.66,6.0729]
[1752651695372,6.0713,164.71,164.67,0.0429762]
[1752651695874,6.0716,164.7,164.67,0.0429762]
[1752651697676,6.072,164.69,164.67,0.0429762]
[1752651698574,6.0722,164.68,164.67,0.0429762]
[1752651698974,4.22163822,164.72,164.67,0.0429762]
[1752651699169,6.0721,164.69,164.67,0.0429762]
[1752651699664,4.22163822,164.72,164.67,0.0429762]
[1752651701078,6.0722,164.68,164.67,0.0429762]
[1752651712596,4.22163822,164.73,164.67,0.0429762]
[1752651713392,6.0716,164.7,164.67,0.0429762]
[1752651716094,6.071,164.71,164.67,4.26461442]
[1752651717998,6.071,164.71,164.67,10.33701442]
[1752651718197,6.071,164.71,164.67,4.26461442]
[1752651719492,6.071,164.71,164.67,10.33681442]
[1752651721798,6.0714,164.7,164.67,4.26461442]
[1752651723200,6.0711,164.71,164.67,10.33701442]
[1752651723508,5.0,164.74,164.67,4.26221018]
[1752651723700,6.0708,164.72,164.68,12.65778461]
[1752651724005,6.0708,164.72,164.68,6.0719]
[1752651725097,6.071,164.71,164.68,6.0719]
[1752651725293,5.0,164.74,164.69,6.58292843]
[1752651725498,6.0709,164.72,164.7,6.58234802]
[1752651725799,6.0709,164.72,164.68,6.0719]
[1752651726101,6.0709,164.72,164.69,6.5823497]
[1752651726301,6.071,164.71,164.69,0.04318081]
[1752651726805,6.0708,164.72,164.69,0.04318081]
[1752651727202,6.0708,164.72,164.69,6.11478081]
[1752651728401,6.0708,164.72,164.69,0.04318081]
[1752651729602,6.071,164.71,164.69,0.04318081]
[1752651731200,6.0707,164.72,164.69,0.04318081]
[1752651733904,6.071,164.71,164.69,0.04318081]
[1752651735404,6.071,164.71,164.7,6.5919112]
[1752651736503,6.0708,164.72,164.7,6.5919112]
[1752651736702,5.0,164.74,164.69,0.04318081]
[1752651737005,5.0,164.74,164.7,6.59678112]
[1752651737199,6.071,164.71,164.69,0.04318081]
[1752651737395,6.071,164.71,164.7,6.60134603]
[1752651738403,5.0,164.74,164.7,6.60134603]
[1752651738604,5.0,164.74,164.71,6.60134603]
[1752651738801,5.0,164.74,164.72,6.60134603]
[1752651738802,11.0701,164.74,164.72,6.60134603]
[1752651739106,5.0,164.74,164.73,6.60134603]
[1752651744111,5.0,164.74,164.73,6.64609154]
[1752651744508,11.07,164.74,164.73,6.64609154]
[1752651751511,5.0,164.74,164.73,6.64609154]
[1752651752114,11.0698,164.74,164.73,6.64609154]
[1752651752917,11.0698,164.74,164.73,6.64556324]
[1752651760223,9.21821118,164.74,164.69,0.04318081]
[1752651760425,4.21821118,164.71,164.69,0.04318081]
[1752651760824,6.0713,164.7,164.69,0.04318081]
[1752651769544,6.0726,164.67,164.62,4.21821118]
[1752651769728,6.0726,164.67,164.63,4.77912789]
[1752651769929,6.0726,164.67,164.64,6.0733]
[1752651770129,4.21821118,164.69,164.61,524.7]
[1752651770330,4.21821118,164.69,164.62,4.77913297]
[1752651770531,4.21821118,164.67,164.63,6.0739]
[1752651771133,6.0728,164.66,164.63,6.0739]
[1752651771427,6.0728,164.66,164.64,6.0735]
[1752651771632,4.21821118,164.67,164.64,6.0735]
[1752651771932,10.29081118,164.67,164.64,6.0735]
[1752651772235,4.21821118,164.67,164.65,5.98147534]
[1752651772435,4.21821118,164.67,164.62,6.0741]
[1752651772632,4.21821118,164.68,164.63,12.05523401]
[1752651772933,4.21821118,164.67,164.64,5.98133401]
[1752651773126,10.29091118,164.67,164.65,5.98133401]
[1752651773326,10.29091118,164.67,164.63,6.0739]
[1752651773533,4.21821118,164.67,164.64,5.98006078]
[1752651773732,6.0731,164.66,164.65,5.98006078]
[1752651774235,6.0732,164.65,164.62,6.0741]
[1752651774435,6.0732,164.65,164.63,5.98011331]
[1752651774636,6.0732,164.65,164.64,5.98011331]
[1752651775438,10.29141118,164.65,164.64,5.98011331]
[1752651775831,6.0742,164.63,164.6,6.0748]
[1752651776137,6.0742,164.63,164.61,5.98062524]
[1752651776342,10.29241118,164.63,164.62,5.98062524]
[1752651777536,10.29241118,164.63,164.58,6.0755]
[1752651777738,10.29241118,164.63,164.59,5.97965606]
[1752651777933,10.29241118,164.63,164.6,5.97965606]
[1752651778133,6.0744,164.62,164.61,5.97965606]
[1752651778335,6.0744,164.62,164.59,6.0752]
[1752651778553,10.29241118,164.63,164.6,12.05296902]
[1752651778836,10.29241118,164.63,164.57,182.16]
[1752651779034,12.1433,164.7,164.6,6.0747]
[1752651779233,6.0739,164.63,164.6,6.0747]
[1752651780738,6.0739,164.63,164.59,6.0752]
[1752651781040,4.21821118,164.63,164.54,4.21821118]